lending/lending_fUSD_20240411
["ID","MTS","AMOUNT","RATE_DAILY","PERIOD"]
[322174965,1712863877226,-1236.35,0.00028219,2]
[322174966,1712863877235,-500.0,0.00028219,2]
[322174967,1712863877292,-1904.13,0.00028219,2]
[322174968,1712863877302,-1836.84,0.00028219,2]
[322174969,1712863877312,-500.0,0.00028219,2]
[322174970,1712863877322,-500.0,0.00028219,2]
[322174971,1712863877332,-2054.27,0.00028219,2]
[322174972,1712863877342,-1139.8,0.00028219,2]
[322174973,1712863877353,-500.0,0.00028219,2]
[322174974,1712863877363,-500.0,0.00028219,2]
[322174975,1712863877372,-574.61176213,0.00028219,2]
[322174976,1712863877382,-500.0,0.00028219,2]
[322174977,1712863877391,-500.0,0.00028219,2]
[322174978,1712863877401,-500.0,0.00028219,2]
[322174979,1712863877410,-208.92147083,0.00028219,2]
[322174980,1712863877419,-500.0,0.00028219,2]
[322174981,1712863877428,-500.0,0.00028219,2]
[322174982,1712863877437,-1133.86,0.00028219,2]
[322174983,1712863877446,-500.0,0.00028219,2]
[322174984,1712863877456,-500.0,0.00028219,2]
[322174985,1712863877465,-1519.24,0.00028219,2]
[322174986,1712863877475,-1150.3,0.00028219,2]
[322174987,1712863877485,-500.0,0.00028219,2]
[322174988,1712863877494,-37031.74,0.00028219,2]
[322174989,1712863877504,-500.0,0.00028219,2]
[322174990,1712863877514,-639.20836557,0.00028219,2]
[322174991,1712863877524,-500.0,0.00028219,2]
[322174992,1712863877534,-2252.02,0.00028219,2]
[322174993,1712863877544,-613.679858,0.00028219,2]
[322174994,1712863877555,-1665.9,0.00028219,2]
[322174995,1712863877566,-500.0,0.00028219,2]
[322174996,1712863877577,-2019.36,0.00028219,2]
[322174997,1712863877591,-500.0,0.00028219,2]
[322174998,1712863877600,-500.0,0.00028219,2]
[322174999,1712863877609,-500.0,0.00028219,2]
[322175000,1712863877619,-3193.7,0.00028219,2]
[322175001,1712863877629,-978.88,0.00028219,2]
[322175002,1712863877638,-805.26,0.00028219,2]
[322175003,1712863877647,-975.54,0.00028219,2]
[322175004,1712863877656,-1224.29,0.00028219,2]
[322175005,1712863877666,-500.0,0.00028219,2]
[322175006,1712863877677,-416.40508442,0.00028219,2]
[322175007,1712863877687,-672.73,0.00028219,2]
[322175008,1712863877697,-500.0,0.00028219,2]
[322175009,1712863877707,-2055.0,0.00028219,2]
[322175010,1712863877718,-1014.43,0.00028219,2]
[322175011,1712863877732,-500.0,0.00028219,2]
[322175012,1712863877742,-500.0,0.00028219,2]
[322175013,1712863877752,-638.51,0.00028219,2]
[322175014,1712863877763,-1372.0,0.00028219,2]
[322175015,1712863877776,-340.8259865,0.00028219,2]
[322175016,1712863877786,-941.68,0.00028219,2]
[322175017,1712863877796,-3008.91,0.00028219,2]
[322175018,1712863877807,-2757.19,0.00028219,2]
[322175019,1712863877816,-500.0,0.00028219,2]
[322175020,1712863877828,-500.0,0.00028219,2]
[322175021,1712863877838,-500.0,0.00028219,2]
[322175022,1712863877847,-2271.32,0.00028219,2]
[322175023,1712863877858,-687.63,0.00028219,2]
[322175024,1712863877868,-3074.05,0.00028219,2]
[322175025,1712863877879,-500.0,0.00028219,2]
[322175026,1712863877889,-1265.86,0.00028219,2]
[322175027,1712863877898,-500.0,0.00028219,2]
[322175028,1712863877908,-500.0,0.00028219,2]
[322175029,1712863877918,-500.0,0.00028219,2]
[322175030,1712863877928,-1938.09,0.00028219,2]
[322175031,1712863877937,-4379.49,0.00028219,2]
[322175032,1712863877948,-1283.37,0.00028219,2]
[322175033,1712863877957,-1885.35,0.00028219,2]
[322175034,1712863877968,-425.27570365,0.00028219,2]
[322175035,1712863877977,-4346.86,0.00028219,2]
[322175036,1712863877987,-1155.02,0.00028219,2]
[322175037,1712863877996,-500.0,0.00028219,2]
[322175038,1712863878007,-53501.75,0.00028219,2]
[322175039,1712863878017,-500.0,0.00028219,2]
[322175040,1712863878027,-1799.15,0.00028219,2]
[322175041,1712863878037,-500.0,0.00028219,2]
[322175042,1712863878047,-2310.28,0.00028219,2]
[322175043,1712863878057,-1949.19,0.00028219,2]
[322175044,1712863878067,-1577.48,0.00028219,2]
[322175045,1712863878078,-500.0,0.00028219,2]
[322175046,1712863878088,-1254.45,0.00028219,2]
[322175047,1712863878097,-522.11,0.00028219,2]
[322175048,1712863878107,-2414.38,0.00028219,2]
[322175049,1712863878117,-18239.28,0.00028219,2]
[322175050,1712863878127,-500.0,0.00028219,2]
[322175051,1712863878137,-907.51,0.00028219,2]
[322175052,1712863878147,-1269.78,0.00028219,2]
[322175053,1712863878157,-500.0,0.00028219,2]
[322175054,1712863878168,-4087.64,0.00028219,2]
[322175055,1712863878178,-4035.48,0.00028219,2]
[322175056,1712863878187,-1472.75,0.00028219,2]
[322175057,1712863878198,-569.15,0.00028219,2]
[322175058,1712863878208,-500.0,0.00028219,2]
[322175059,1712863878218,-500.0,0.00028219,2]
[322175060,1712863878229,-500.0,0.00028219,2]
[322175061,1712863878238,-500.0,0.00028219,2]
[322175062,1712863878248,-3443.33,0.00028219,2]
[322175063,1712863878258,-715.43,0.00028219,2]
[322175064,1712863878268,-500.0,0.00028219,2]
[322175065,1712863878278,-1468.65,0.00028219,2]
[322175066,1712863878288,-4438.94,0.00028219,2]
[322175067,1712863878299,-500.0,0.00028219,2]
[322175068,1712863878309,-396.65578459,0.00028219,2]
[322175069,1712863878319,-500.0,0.00028219,2]
[322175070,1712863878331,-947.32,0.00028219,2]
[322175071,1712863878341,-1460.88,0.00028219,2]
[322175072,1712863878351,-1078.14,0.00028219,2]
[322175073,1712863878361,-500.0,0.00028219,2]
[322175074,1712863878372,-4053.95,0.00028219,2]
[322175075,1712863878383,-742.27,0.00028219,2]
[322175076,1712863878394,-500.0,0.00028219,2]
[322175077,1712863878404,-500.0,0.00028219,2]
[322175078,1712863878414,-500.0,0.00028219,2]
[322175079,1712863878424,-1767.47,0.00028219,2]
[322175080,1712863878436,-785.41,0.00028219,2]
[322175081,1712863878446,-9803.96,0.00028219,2]
[322175082,1712863878456,-1559.45,0.00028219,2]
[322175083,1712863878466,-12452.77,0.00028219,2]
[322175084,1712863878477,-500.0,0.00028219,2]
[322175085,1712863878487,-500.0,0.00028219,2]
[322175086,1712863878498,-6184.21,0.00028219,2]
[322175087,1712863878508,-696.39,0.00028219,2]
[322175088,1712863878519,-4243.64,0.00028219,2]
[322175089,1712863878530,-500.0,0.00028219,2]
[322175090,1712863878539,-500.0,0.00028219,2]
[322175091,1712863878551,-500.0,0.00028219,2]
[322175092,1712863878561,-1034.64,0.00028219,2]
[322175093,1712863878573,-500.0,0.00028219,2]
[322175094,1712863878585,-500.0,0.00028219,2]
[322175095,1712863878597,-500.0,0.00028219,2]
[322175096,1712863878608,-2762.12,0.00028219,2]
[322175097,1712863878618,-2525.19,0.00028219,2]
[322175098,1712863878628,-3638.97,0.00028219,2]
[322175099,1712863878637,-809.39,0.00028219,2]
[322175100,1712863878648,-6755.28,0.00028219,2]
[322175101,1712863878659,-500.0,0.00028219,2]
[322175102,1712863878668,-500.0,0.00028219,2]
[322175103,1712863878680,-3313.18,0.00028219,2]
[322175104,1712863878691,-3298.66,0.00028219,2]
[322175105,1712863878701,-2090.96,0.00028219,2]
[322175106,1712863878710,-3316.05,0.00028219,2]
[322175107,1712863878719,-500.0,0.00028219,2]
[322175108,1712863878729,-2581.64,0.00028219,2]
[322175109,1712863878738,-500.0,0.00028219,2]
[322175110,1712863878747,-500.0,0.00028219,2]
[322175111,1712863878755,-2873.47,0.00028219,2]
[322175112,1712863878765,-500.0,0.00028219,2]
[322175113,1712863878774,-2480.74,0.00028219,2]
[322175114,1712863878783,-1598.84,0.00028219,2]
[322175115,1712863878792,-1789.61,0.00028219,2]
[322175116,1712863878801,-14422.58,0.00028219,2]
[322175117,1712863878810,-5953.17,0.00028219,2]
[322175118,1712863878819,-1652.71,0.00028219,2]
[322175119,1712863878829,-737.57,0.00028219,2]
[322175120,1712863878839,-500.0,0.00028219,2]
[322175121,1712863878849,-7074.56,0.00028219,2]
[322175122,1712863878858,-500.0,0.00028219,2]
[322175123,1712863878868,-1619.98,0.00028219,2]
[322175124,1712863878878,-368.2636965,0.00028219,2]
[322175125,1712863878887,-2584.49,0.00028219,2]
[322175126,1712863878897,-500.0,0.00028219,2]
[322175127,1712863878907,-2631.69,0.00028219,2]
[322175128,1712863878916,-10781.75,0.00028219,2]
[322175129,1712863878927,-2141.81,0.00028219,2]
[322175130,1712863878936,-2228.38,0.00028219,2]
[322175131,1712863878946,-1182.41,0.00028219,2]
[322175132,1712863878955,-547.08,0.00028219,2]
[322175133,1712863878966,-1306.7,0.00028219,2]
[322175134,1712863878975,-1593.8,0.00028219,2]
[322175135,1712863878985,-2162.99,0.00028219,2]
[322175136,1712863878994,-500.0,0.00028219,2]
[322175137,1712863879005,-1388.34,0.00028219,2]
[322175138,1712863879014,-500.0,0.00028219,2]
[322175139,1712863879023,-4975.16,0.00028219,2]
[322175140,1712863879032,-569.06452742,0.00028219,2]
[322175141,1712863879041,-500.0,0.00028219,2]
[322175142,1712863879050,-500.0,0.00028219,2]
[322175143,1712863879059,-3398.13,0.00028219,2]
[322175144,1712863879068,-4052.06,0.00028219,2]
[322175145,1712863879079,-500.0,0.00028219,2]
[322175146,1712863879089,-500.0,0.00028219,2]
[322175147,1712863879098,-3587.71,0.00028219,2]
[322175148,1712863879108,-500.0,0.00028219,2]
[322175149,1712863879118,-2718.79,0.00028219,2]
[322175150,1712863879128,-538.59,0.00028219,2]
[322175151,1712863879137,-500.0,0.00028219,2]
[322175152,1712863879146,-643.87,0.00028219,2]
[322175153,1712863879155,-1944.58,0.00028219,2]
[322175154,1712863879164,-3239.59,0.00028219,2]
[322175155,1712863879173,-640.82,0.00028219,2]
[322175156,1712863879182,-2450.14,0.00028219,2]
[322175157,1712863879191,-741.23,0.00028219,2]
[322175158,1712863879201,-1379.62,0.00028219,2]
[322175159,1712863879210,-500.0,0.00028219,2]
[322175160,1712863879219,-1028.85,0.00028219,2]
[322175161,1712863879229,-5944.87,0.00028219,2]
[322175162,1712863879238,-2132.08,0.00028219,2]
[322175163,1712863879247,-1280.64,0.00028219,2]
[322175164,1712863879257,-1028.51,0.00028219,2]
[322175165,1712863879267,-7074.77,0.00028219,2]
[322175166,1712863879276,-4562.38,0.00028219,2]
[322175167,1712863879285,-6825.13,0.00028219,2]
[322175168,1712863879295,-500.0,0.00028219,2]
[322175169,1712863879304,-3134.26,0.00028219,2]
[322175170,1712863879314,-2368.31,0.00028219,2]
[322175171,1712863879323,-15352.07,0.00028219,2]
[322175172,1712863879332,-1225.72,0.00028219,2]
[322175173,1712863879342,-500.0,0.00028219,2]
[322175174,1712863879351,-1114.66,0.00028219,2]
[322175175,1712863879361,-1085.38,0.00028219,2]
[322175176,1712863879371,-757.5,0.00028219,2]
[322175177,1712863879380,-500.0,0.00028219,2]
[322175178,1712863879389,-1240.17,0.00028219,2]
[322175179,1712863879399,-3479.62,0.00028219,2]
[322175180,1712863879409,-3289.28,0.00028219,2]
[322175181,1712863879419,-151.0,0.00028219,7]
[322175182,1712863879428,-4609.28,0.00028219,2]
[322175183,1712863879437,-586.73,0.00028219,2]
[322175184,1712863879446,-776.88,0.00028219,2]
[322175185,1712863879455,-1626.2,0.00028219,2]
[322175186,1712863879468,-500.0,0.00028219,2]
[322175187,1712863879477,-20099.39,0.00028219,2]
[322175188,1712863879486,-851.06,0.00028219,2]
[322175189,1712863879496,-1308.93,0.00028219,2]
[322175190,1712863879505,-25741.65,0.00028219,2]
[322175191,1712863879514,-3018.25,0.00028219,2]
[322175192,1712863879523,-2048.9,0.00028219,2]
[322175193,1712863879532,-3588.33,0.00028219,2]
[322175194,1712863879541,-3107.63,0.00028219,2]
[322175195,1712863879550,-1051.67,0.00028219,2]
[322175196,1712863879560,-500.0,0.00028219,2]
[322175197,1712863879569,-2374.36,0.00028219,2]
[322175198,1712863879579,-1592.05,0.00028219,2]
[322175199,1712863879589,-2534.14,0.00028219,2]
[322175200,1712863879602,-505.91,0.00028219,2]
[322175201,1712863879611,-19452.39,0.00028219,2]
[322175202,1712863879620,-500.0,0.00028219,2]
[322175203,1712863879630,-527.81,0.00028219,2]
[322175204,1712863879639,-3020.3,0.00028219,2]
[322175205,1712863879649,-7446.86,0.00028219,2]
[322175206,1712863879658,-1495.54,0.00028219,2]
[322175207,1712863879667,-500.0,0.00028219,2]
[322175208,1712863879677,-2700.11,0.00028219,2]
[322175209,1712863879687,-614.49,0.00028219,2]
[322175210,1712863879696,-1142.49,0.00028219,2]
[322175211,1712863879705,-500.0,0.00028219,2]
[322175212,1712863879714,-8843.49,0.00028219,2]
[322175213,1712863879723,-682.27,0.00028219,2]
[322175214,1712863879733,-2651.73,0.00028219,2]
[322175215,1712863879742,-18815.4,0.00028219,2]
[322175216,1712863879750,-54176.01,0.00028219,2]
[322175217,1712863879760,-3784.62,0.00028219,2]
[322175218,1712863879769,-1593.95,0.00028219,2]
[322175219,1712863879778,-8906.82,0.00028219,2]
[322175220,1712863879787,-232.0907181,0.00028219,2]
[322175221,1712863879796,-4300.73,0.00028219,2]
[322175222,1712863879805,-631.27,0.00028219,2]
[322175223,1712863879815,-596.57,0.00028219,2]
[322175224,1712863879825,-500.0,0.00028219,2]
[322175225,1712863879835,-4603.8,0.00028219,2]
[322175226,1712863879845,-2116.62,0.00028219,2]
[322175227,1712863879856,-4305.06,0.00028219,2]
[322175228,1712863879866,-821.16,0.00028219,2]
[322175229,1712863879876,-6457.93,0.00028219,2]
[322175230,1712863879886,-500.0,0.00028219,2]
[322175231,1712863879896,-1483.72,0.00028219,2]
[322175232,1712863879906,-500.0,0.00028219,2]
[322175233,1712863879916,-690.55,0.00028219,2]
[322175234,1712863879926,-812.85,0.00028219,2]
[322175235,1712863879937,-500.0,0.00028219,2]
[322175236,1712863879947,-5042.1,0.00028219,2]
[322175237,1712863879957,-2960.07,0.00028219,2]
[322175238,1712863879968,-500.0,0.00028219,2]
[322175239,1712863879978,-500.0,0.00028219,2]
[322175240,1712863879989,-5647.2,0.00028219,2]
[322175241,1712863879999,-4454.49,0.00028219,2]
[322175242,1712863880009,-500.0,0.00028219,2]
[322175243,1712863880019,-2440.94,0.00028219,2]
[322175244,1712863880030,-500.0,0.00028219,2]
[322175245,1712863880043,-1308.46,0.00028219,2]
[322175246,1712863880053,-748.44,0.00028219,2]
[322175247,1712863880064,-500.0,0.00028219,2]
[322175248,1712863880074,-849.93,0.00028219,2]
[322175249,1712863880083,-9726.64,0.00028219,2]
[322175250,1712863880094,-500.0,0.00028219,2]
[322175251,1712863880104,-3590.29,0.00028219,2]
[322175252,1712863880114,-501.06,0.00028219,2]
[322175253,1712863880124,-3226.22,0.00028219,2]
[322175254,1712863880134,-500.0,0.00028219,2]
[322175255,1712863880144,-769.9,0.00028219,2]
[322175256,1712863880154,-7238.93,0.00028219,2]
[322175257,1712863880164,-837.7,0.00028219,2]
[322175258,1712863880174,-500.0,0.00028219,2]
[322175259,1712863880183,-545.93239807,0.00028219,2]
[322175260,1712863880194,-866.14,0.00028219,2]
[322175261,1712863880205,-500.0,0.00028219,2]
[322175262,1712863880216,-2879.46,0.00028219,2]
[322175263,1712863880227,-3278.69,0.00028219,2]
[322175264,1712863880241,-1814.55,0.00028219,2]
[322175265,1712863880251,-34421.11,0.00028219,2]
[322175266,1712863880263,-1644.22,0.00028219,2]
[322175267,1712863880274,-500.0,0.00028219,2]
[322175268,1712863880286,-500.0,0.00028219,2]
[322175269,1712863880296,-500.0,0.00028219,2]
[322175270,1712863880468,-689.01,0.00028219,2]
[322175271,1712863880492,-795.68,0.00028219,2]
[322175272,1712863880503,-984.54,0.00028219,2]
[322175273,1712863880513,-3327.03,0.00028219,2]
[322175274,1712863880523,-500.0,0.00028219,2]
[322175275,1712863880534,-500.0,0.00028219,2]
[322175276,1712863880545,-1110.72,0.00028219,2]
[322175277,1712863880556,-4548.52,0.00028219,2]
[322175278,1712863880567,-6971.64,0.00028219,2]
[322175279,1712863880579,-4131.95,0.00028219,2]
[322175280,1712863880589,-1689.02,0.00028219,2]
[322175281,1712863880602,-1399.8,0.00028219,2]
[322175282,1712863880613,-588.2,0.00028219,2]
[322175283,1712863880624,-500.0,0.00028219,2]
[322175284,1712863880634,-2132.57,0.00028219,2]
[322175285,1712863880645,-2460.93,0.00028219,2]
[322175286,1712863880655,-3570.47,0.00028219,2]
[322175287,1712863880667,-940.49,0.00028219,2]
[322175288,1712863880679,-1384.5,0.00028219,2]
[322175289,1712863880691,-523.38,0.00028219,2]
[322175290,1712863880702,-5204.76,0.00028219,2]
[322175291,1712863880713,-7694.44,0.00028219,2]
[322175292,1712863880724,-500.0,0.00028219,2]
[322175293,1712863880733,-500.0,0.00028219,2]
[322175294,1712863880743,-12079.87,0.00028219,2]
[322175295,1712863880754,-6684.72,0.00028219,2]
[322175296,1712863880765,-526.39,0.00028219,2]
[322175297,1712863880775,-5671.76,0.00028219,2]
[322175298,1712863880786,-2162.52,0.00028219,2]
[322175299,1712863880797,-500.0,0.00028219,2]
[322175300,1712863880808,-500.0,0.00028219,2]
[322175301,1712863880818,-2445.18,0.00028219,2]
[322175302,1712863880829,-3880.76,0.00028219,2]
[322175303,1712863880840,-3432.24,0.00028219,2]
[322175304,1712863880850,-730.94,0.00028219,2]
[322175305,1712863880861,-676.92,0.00028219,2]
[322175306,1712863880872,-500.0,0.00028219,2]
[322175307,1712863880882,-534.08,0.00028219,2]
[322175308,1712863880891,-2554.06,0.00028219,2]
[322175309,1712863880902,-500.0,0.00028219,2]
[322175310,1712863880912,-2590.36,0.00028219,2]
[322175311,1712863880922,-1131.02,0.00028219,2]
[322175312,1712863880931,-1707.21,0.00028219,2]
[322175313,1712863880942,-2283.61,0.00028219,2]
[322175314,1712863880952,-7140.03,0.00028219,2]
[322175315,1712863880963,-615.11,0.00028219,2]
[322175316,1712863880974,-731.31,0.00028219,2]
[322175317,1712863880984,-500.0,0.00028219,2]
[322175318,1712863880994,-5613.0,0.00028219,2]
[322175319,1712863881004,-500.0,0.00028219,2]
[322175320,1712863881014,-1489.13,0.00028219,2]
[322175321,1712863881024,-500.0,0.00028219,2]
[322175322,1712863881034,-500.0,0.00028219,2]
[322175323,1712863881044,-500.0,0.00028219,2]
[322175324,1712863881054,-500.0,0.00028219,2]
[322175325,1712863881064,-585.96,0.00028219,2]
[322175326,1712863881073,-11078.41,0.00028219,2]
[322175327,1712863881083,-2508.39,0.00028219,2]
[322175328,1712863881093,-1856.58,0.00028219,2]
[322175329,1712863881103,-500.0,0.00028219,2]
[322175330,1712863881113,-1073.6,0.00028219,2]
[322175331,1712863881123,-554.68,0.00028219,2]
[322175332,1712863881133,-2129.83,0.00028219,2]
[322175333,1712863881143,-4134.48,0.00028219,2]
[322175334,1712863881154,-4212.13,0.00028219,2]
[322175335,1712863881165,-3469.4,0.00028219,2]
[322175336,1712863881175,-500.0,0.00028219,2]
[322175337,1712863881186,-563.5,0.00028219,2]
[322175338,1712863881197,-8111.23,0.00028219,2]
[322175339,1712863881207,-500.0,0.00028219,2]
[322175340,1712863881217,-644.22,0.00028219,2]
[322175341,1712863881227,-500.0,0.00028219,2]
[322175342,1712863881238,-526.02,0.00028219,2]
[322175343,1712863881248,-609.54,0.00028219,2]
[322175344,1712863881258,-150.0,0.000283,2]
[322175345,1712863881269,-150.0,0.00028302,2]
[322175346,1712863881280,-153.90892363,0.00028327,2]
[322175347,1712863881291,-4610.41930142,0.00028344,2]
[322175348,1712863881301,-3527.4826107,0.00028344,2]
[322175349,1712863881312,-167.21,0.00028371,2]
[322175350,1712863881323,-6213.55879472,0.00028425,2]
[322175351,1712863881333,-298.556772,0.00028425,7]
[322175352,1712863881344,-150.0,0.00028485,2]
[322175353,1712863881355,-1000.0,0.00028492,2]
[322175354,1712863881365,-1182.71,0.00028492,2]
[322175355,1712863881374,-1182.71,0.00028492,2]
[322175356,1712863881383,-1182.71,0.00028492,2]
[322175357,1712863881394,-1182.71,0.00028492,2]
[322175358,1712863881405,-1182.71,0.00028492,2]
[322175359,1712863881416,-1182.71,0.00028492,2]
[322175360,1712863881426,-1182.78,0.00028492,2]
[322175361,1712863881437,-337.9715749,0.00028493,2]
[322175362,1712863881447,-500.0,0.00028493,2]
[322175363,1712863881457,-325.75717249,0.00028493,2]
[322175364,1712863881467,-200.0,0.00028493,2]
[322175365,1712863881477,-500.0,0.00028493,2]
[322175366,1712863881488,-558.78,0.00028493,2]
[322175367,1712863881498,-500.0,0.00028493,2]
[322175368,1712863881510,-781.35,0.00028493,2]
[322175369,1712863881520,-500.0,0.00028493,2]
[322175370,1712863881531,-577.97,0.00028493,2]
[322175371,1712863881542,-500.0,0.00028493,2]
[322175372,1712863881552,-500.0,0.00028493,2]
[322175373,1712863881562,-508.83,0.00028493,2]
[322175374,1712863881573,-500.0,0.00028493,2]
[322175375,1712863881585,-616.34,0.00028493,2]
[322175376,1712863881598,-500.0,0.00028493,2]
[322175377,1712863881608,-500.0,0.00028493,2]
[322175378,1712863881618,-500.0,0.00028493,2]
[322175379,1712863881627,-500.0,0.00028493,2]
[322175380,1712863881638,-500.0,0.00028493,2]
[322175381,1712863881648,-500.0,0.00028493,2]
[322175382,1712863881657,-500.0,0.00028493,2]
[322175383,1712863881667,-500.0,0.00028493,2]
[322175384,1712863881678,-500.0,0.00028493,2]
[322175385,1712863881689,-500.0,0.00028493,2]
[322175386,1712863881699,-979.68,0.00028493,2]
[322175387,1712863881710,-678.48,0.00028493,2]
[322175388,1712863881721,-500.0,0.00028493,2]
[322175389,1712863881732,-641.80828029,0.00028493,2]
[322175390,1712863881742,-500.0,0.00028493,2]
[322175391,1712863881752,-500.0,0.00028493,2]
[322175392,1712863881762,-500.0,0.00028493,2]
[322175393,1712863881771,-500.0,0.00028493,2]
[322175394,1712863881783,-500.0,0.00028493,2]
[322175395,1712863881793,-500.0,0.00028493,2]
[322175396,1712863881803,-500.0,0.00028493,2]
[322175397,1712863881813,-500.0,0.00028493,2]
[322175398,1712863881823,-539.25,0.00028493,2]
[322175399,1712863881834,-956.96,0.00028493,2]
[322175400,1712863881844,-730.66,0.00028493,2]
[322175401,1712863881853,-500.0,0.00028493,2]
[322175402,1712863881862,-520.74,0.00028493,2]
[322175403,1712863881872,-500.0,0.00028493,2]
[322175404,1712863881882,-500.0,0.00028493,2]
[322175405,1712863881892,-582.63,0.00028493,2]
[322175406,1712863881903,-1271.89,0.00028493,2]
[322175407,1712863881912,-500.0,0.00028493,2]
[322175408,1712863881922,-661.97,0.00028493,2]
[322175409,1712863881933,-500.0,0.00028493,2]
[322175410,1712863881943,-500.0,0.00028493,2]
[322175411,1712863881952,-500.0,0.00028493,2]
[322175412,1712863881961,-500.0,0.00028493,2]
[322175413,1712863881970,-598.1,0.00028493,2]
[322175414,1712863881979,-500.0,0.00028493,2]
[322175415,1712863881988,-500.0,0.00028493,2]
[322175416,1712863881998,-500.0,0.00028493,2]
[322175417,1712863882008,-500.0,0.00028493,2]
[322175418,1712863882017,-500.0,0.00028493,2]
[322175419,1712863882027,-735.6,0.00028493,2]
[322175420,1712863882036,-500.0,0.00028493,2]
[322175421,1712863882046,-500.0,0.00028493,2]
[322175422,1712863882056,-500.0,0.00028493,2]
[322175423,1712863882065,-724.36,0.00028493,2]
[322175424,1712863882075,-500.0,0.00028493,2]
[322175425,1712863882085,-500.0,0.00028493,2]
[322175426,1712863882094,-500.0,0.00028493,2]
[322175427,1712863882104,-500.0,0.00028493,2]
[322175428,1712863882113,-500.0,0.00028493,2]
[322175429,1712863882123,-500.0,0.00028493,2]
[322175430,1712863882132,-500.0,0.00028493,2]
[322175431,1712863882141,-662.41,0.00028493,2]
[322175432,1712863882151,-500.0,0.00028493,2]
[322175433,1712863882160,-500.0,0.00028493,2]
[322175434,1712863882169,-500.0,0.00028493,2]
[322175435,1712863882178,-500.0,0.00028493,2]
[322175436,1712863882187,-500.0,0.00028493,2]
[322175437,1712863882197,-500.0,0.00028493,2]
[322175438,1712863882206,-500.0,0.00028493,2]
[322175439,1712863882215,-645.77,0.00028493,2]
[322175440,1712863882225,-500.0,0.00028493,2]
[322175441,1712863882234,-500.0,0.00028493,2]
[322175442,1712863882243,-630.18,0.00028493,2]
[322175443,1712863882253,-500.0,0.00028493,2]
[322175444,1712863882264,-538.93,0.00028493,2]
[322175445,1712863882273,-500.0,0.00028493,2]
[322175446,1712863882282,-1170.3,0.00028493,2]
[322175447,1712863882291,-500.0,0.00028493,2]
[322175448,1712863882300,-500.0,0.00028493,2]
[322175449,1712863882309,-500.0,0.00028493,2]
[322175450,1712863882319,-500.0,0.00028493,2]
[322175451,1712863882329,-500.0,0.00028493,2]
[322175452,1712863882338,-500.0,0.00028493,2]
[322175453,1712863882348,-622.48,0.00028493,2]
[322175454,1712863882357,-500.0,0.00028493,2]
[322175455,1712863882367,-500.0,0.00028493,2]
[322175456,1712863882376,-500.0,0.00028493,2]
[322175457,1712863882385,-881.06,0.00028493,2]
[322175458,1712863882395,-776.07,0.00028493,2]
[322175459,1712863882405,-500.0,0.00028493,2]
[322175460,1712863882415,-500.0,0.00028493,2]
[322175461,1712863882424,-500.0,0.00028493,2]
[322175462,1712863882434,-500.0,0.00028493,2]
[322175463,1712863882444,-500.0,0.00028493,2]
[322175464,1712863882453,-500.0,0.00028493,2]